bitfinex/quotes_BTCUSD_20251215
["timestamp","ask_amount","ask_price","bid_price","bid_amount"]
[1765785464281,0.23377129,89832.0,89829.0,0.1484]
[1765785465071,0.23377129,89832.0,89828.0,0.01113238]
[1765785465274,0.01113213,89830.0,89827.0,0.01113251]
[1765785465485,0.22265268,89826.0,89824.0,0.1484]
[1765785465674,0.22265268,89826.0,89816.0,0.07068687]
[1765785465675,0.01113337,89820.0,89817.0,0.1484]
[1765785466095,0.22267003,89819.0,89817.0,0.1484]
[1765785466307,0.22267003,89819.0,89818.0,0.05]
[1765785466651,0.01113337,89820.0,89818.0,0.05]
[1765785466778,0.22267003,89819.0,89818.0,0.05038226]
[1765785467390,0.37242006,89819.0,89818.0,0.05038226]
[1765785468446,0.37542006,89819.0,89818.0,0.05038226]
[1765785468959,0.37242006,89819.0,89818.0,0.05038226]
[1765785469105,0.37542006,89819.0,89818.0,0.05038226]
[1765785474057,0.26418003,89819.0,89818.0,0.05038226]
[1765785474461,0.37542006,89819.0,89818.0,0.00038226]
[1765785474846,0.26418003,89819.0,89818.0,0.00038226]
[1765785475049,0.37542006,89819.0,89818.0,0.00038226]
[1765785475976,0.37242006,89819.0,89818.0,0.00038226]
[1765785476208,0.37542006,89819.0,89818.0,0.00038226]
[1765785478921,0.26431003,89819.0,89818.0,0.00038226]
[1765785479337,0.37555006,89819.0,89818.0,0.00038226]
[1765785480451,0.39315006,89819.0,89818.0,0.00038226]
[1765785480863,0.35451006,89819.0,89818.0,0.00038226]
[1765785481155,0.26389003,89819.0,89818.0,0.00038226]
[1765785481680,0.003,89819.0,89818.0,0.00038226]
[1765785481901,0.22567003,89819.0,89818.0,0.00038226]
[1765785482650,0.24125003,89819.0,89818.0,0.00038226]
[1765785482969,0.37513006,89819.0,89818.0,0.00038226]
[1765785485099,0.26389003,89819.0,89818.0,0.00038226]
[1765785485299,0.25885003,89819.0,89818.0,0.00038226]
[1765785486123,0.28149003,89819.0,89818.0,0.00038226]
[1765785487176,0.26389003,89819.0,89818.0,0.00038226]
[1765785487363,0.28149003,89819.0,89818.0,0.00038226]
[1765785488566,0.03618,89819.0,89818.0,0.00038226]
[1765785489326,0.05882,89819.0,89818.0,0.00038226]
[1765785490949,0.03618,89819.0,89818.0,0.00038226]
[1765785492246,0.05882,89819.0,89818.0,0.00038226]
[1765785493006,0.26389003,89819.0,89818.0,0.00038226]
[1765785494510,0.37513006,89819.0,89818.0,0.00038226]
[1765785500004,0.01113523,89805.0,89802.0,0.01090799]
[1765785500210,0.01113523,89805.0,89802.0,0.01102276]
[1765785501441,0.00831,89807.0,89803.0,0.01113548]
[1765785501642,0.01944498,89807.0,89803.0,0.01113548]
[1765785501798,0.004,89805.0,89803.0,0.23384495]
[1765785502332,0.01944498,89807.0,89803.0,0.01113548]
[1765785502633,0.02444498,89807.0,89803.0,0.01113548]
[1765785503002,0.01944498,89807.0,89803.0,0.01113548]
[1765785503328,0.004,89805.0,89803.0,0.01113548]
[1765785504553,0.01113511,89806.0,89803.0,0.01113548]
[1765785505160,0.01558,89804.0,89802.0,0.00011477]
[1765785505364,0.12682003,89803.0,89802.0,0.00011477]
[1765785505636,0.004,89805.0,89803.0,0.2227097]
[1765785505983,0.01944498,89807.0,89803.0,0.23384518]
[1765785506183,0.0176,89811.0,89807.0,0.22269978]
[1765785506383,0.02873449,89811.0,89808.0,0.01113486]
[1765785506582,0.01113449,89811.0,89808.0,0.01113486]
[1765785507363,0.01113424,89813.0,89810.0,0.01113461]
[1765785507593,0.02873412,89814.0,89808.0,0.01113486]
[1765785508677,0.006,89813.0,89810.0,0.01113461]
[1765785509059,0.02873412,89814.0,89810.0,0.01113461]
[1765785509462,0.03473412,89814.0,89810.0,0.01113461]
[1765785509936,0.01713412,89814.0,89810.0,0.01113461]
[1765785510472,0.006,89814.0,89811.0,0.01113449]
[1765785510659,0.03704399,89815.0,89811.0,0.01113449]
[1765785510861,0.006,89814.0,89811.0,0.01113449]
[1765785511068,0.01113424,89813.0,89809.0,0.01113474]
[1765785511288,0.01113424,89813.0,89810.0,0.01113461]
[1765785512626,0.006,89813.0,89810.0,0.01113461]
[1765785512968,0.006,89813.0,89810.0,0.23382656]
[1765785516515,0.006,89813.0,89812.0,0.22268739]
[1765785517341,0.00831,89815.0,89812.0,0.23382175]
[1765785517556,0.00831,89815.0,89813.0,0.22268251]
[1765785518127,0.00831,89815.0,89812.0,0.23382098]
[1765785518308,0.00831,89815.0,89812.0,0.01113436]
[1765785518515,0.01431,89815.0,89812.0,0.01113436]
[1765785518932,0.04891399,89815.0,89812.0,0.01113436]
[1765785519487,0.01113412,89814.0,89810.0,0.23382656]
[1765785519715,0.01113412,89814.0,89811.0,0.01113449]
[1765785520014,0.03460412,89814.0,89811.0,0.01113449]
[1765785520907,0.04060412,89814.0,89811.0,0.01113449]
[1765785521275,0.03460412,89814.0,89811.0,0.01113449]
[1765785521613,0.04060412,89814.0,89811.0,0.01113449]
[1765785522159,0.02947,89814.0,89812.0,0.22268739]
[1765785523031,0.02347,89814.0,89811.0,0.01113449]
[1765785523442,0.02947,89814.0,89811.0,0.01113449]
[1765785523852,0.01658,89812.0,89811.0,0.01113449]
[1765785524577,0.01658,89812.0,89810.0,0.23382466]
[1765785524578,0.04005,89812.0,89810.0,0.23382466]
[1765785524737,0.01658,89811.0,89809.0,0.23382791]
[1765785526270,0.005,89812.0,89811.0,0.22268987]
[1765785526478,0.00831,89815.0,89812.0,0.01113436]
[1765785526633,0.03178,89815.0,89812.0,0.01113436]
[1765785528089,0.03178,89815.0,89813.0,0.22268491]
[1765785528285,0.03178,89815.0,89812.0,0.01113436]
[1765785529154,0.03778,89815.0,89812.0,0.01113436]
[1765785530097,0.02347,89814.0,89812.0,0.01113436]
[1765785531270,0.01431,89815.0,89812.0,0.01113436]
[1765785531497,0.03178,89815.0,89812.0,0.01113436]
[1765785532157,0.00831,89815.0,89812.0,0.01113436]
[1765785532716,0.00831,89815.0,89813.0,0.22268491]
[1765785533084,0.006,89814.0,89813.0,0.22268491]
[1765785533438,0.00831,89815.0,89813.0,0.22268491]
[1765785533875,0.01431,89815.0,89813.0,0.22268491]
[1765785534224,0.00831,89815.0,89813.0,0.22268491]
[1765785534595,0.01431,89815.0,89813.0,0.22268491]
[1765785536983,0.006,89815.0,89813.0,0.22268491]
[1765785541133,0.02988,89815.0,89813.0,0.22268491]
[1765785541553,0.03893,89814.0,89813.0,0.22268491]
[1765785541778,0.006,89815.0,89813.0,0.22268491]
[1765785542358,0.00024058,89821.0,89818.0,0.23380473]
[1765785543562,0.03112058,89821.0,89818.0,0.23380473]
[1765785545185,0.00724058,89821.0,89818.0,0.23380473]
[1765785545592,0.03112058,89821.0,89818.0,0.23380473]
[1765785545796,0.01505,89819.0,89818.0,0.23380473]
[1765785545997,0.01505,89819.0,89816.0,0.01113387]
[1765785546197,0.03893,89819.0,89816.0,0.01113387]
[1765785546485,0.01505,89817.0,89816.0,0.01113387]
[1765785546660,0.12629003,89817.0,89814.0,0.23381655]
[1765785546904,0.02388,89816.0,89814.0,0.23381655]
[1765785547096,0.01505,89815.0,89814.0,0.23381655]
[1765785547291,0.02336,89815.0,89814.0,0.23381655]
[1765785547841,0.04724,89815.0,89814.0,0.23381655]
[1765785548957,0.05324,89815.0,89814.0,0.23381655]
[1765785549134,0.05324,89815.0,89812.0,0.38221972]
[1765785549135,0.11124003,89813.0,89812.0,0.15953436]
[1765785549316,0.12629003,89813.0,89812.0,0.15953436]
[1765785549515,0.03893,89813.0,89812.0,0.15953436]
[1765785551141,0.04493,89813.0,89812.0,0.38222175]
[1765785551338,0.04493,89813.0,89812.0,0.23382175]
[1765785551654,0.02105,89813.0,89812.0,0.23382175]
[1765785553747,0.006,89813.0,89812.0,0.23382175]
[1765785565197,0.006,89813.0,89812.0,0.24495512]
[1765785566146,0.04493,89813.0,89812.0,0.01113337]
[1765785566962,0.02105,89813.0,89812.0,0.01113337]
[1765785567391,0.006,89813.0,89812.0,0.01113337]
[1765785571088,0.04461,89813.0,89812.0,0.01113337]
[1765785571294,0.04461,89813.0,89811.0,0.1484]
[1765785571295,0.22268739,89812.0,89811.0,0.1484]
[1765785571497,0.26180739,89812.0,89811.0,0.1484]
[1765785572448,0.26780739,89812.0,89811.0,0.1484]
[1765785574461,0.24485739,89812.0,89811.0,0.1484]
[1765785574609,0.26780739,89812.0,89811.0,0.1484]
[1765785574804,0.24485739,89812.0,89811.0,0.1484]
[1765785575011,0.24485739,89812.0,89809.0,0.18184051]
[1765785575238,0.26780739,89812.0,89809.0,0.18184051]
[1765785575443,0.01617,89810.0,89809.0,0.18184051]
[1765785575684,0.23982175,89812.0,89809.0,0.18184051]
[1765785575881,0.23382175,89812.0,89809.0,0.18184051]
[1765785576116,0.12741003,89810.0,89809.0,0.1484]
[1765785577030,0.01617,89810.0,89809.0,0.1484]
[1765785577548,0.15036003,89810.0,89809.0,0.1484]
[1765785577977,0.37305238,89810.0,89809.0,0.1484]
[1765785578384,0.37805238,89810.0,89809.0,0.1484]
[1765785578806,0.24386235,89810.0,89809.0,0.1484]
[1765785580728,0.26681235,89810.0,89809.0,0.1484]
[1765785580934,0.26681235,89810.0,89803.0,0.00161287]
[1765785580935,0.22270557,89805.0,89803.0,0.00161287]
[1765785582010,0.22670557,89805.0,89803.0,0.00161287]
[1765785588305,0.33394973,89803.0,89802.0,0.05011477]
[1765785588486,0.35011973,89803.0,89802.0,0.05011477]
[1765785588694,0.2388797,89803.0,89802.0,0.05011477]
[1765785589187,0.2227097,89803.0,89802.0,0.05011477]
[1765785590503,0.2267097,89803.0,89802.0,0.05011477]
[1765785591609,0.2267097,89803.0,89802.0,0.08930477]
[1765785591610,0.004,89803.0,89802.0,0.08930477]
[1765785592703,0.004,89803.0,89802.0,0.06608477]
[1765785599890,0.004,89803.0,89802.0,0.05011477]
[1765785600892,0.004,89803.0,89802.0,0.00011477]
[1765785603930,0.004,89803.0,89802.0,0.09061603]
[1765785604142,0.004,89803.0,89802.0,0.11288724]
[1765785604347,0.004,89803.0,89802.0,0.26132427]
[1765785604548,0.004,89803.0,89802.0,0.23905306]
[1765785604768,0.004,89803.0,89802.0,0.38745306]
[1765785604937,0.004,89803.0,89802.0,0.27623077]
[1765785606141,0.004,89803.0,89802.0,0.56693077]
[1765785606308,0.004,89803.0,89802.0,0.62676792]
[1765785606656,0.004,89803.0,89802.0,0.56693077]
[1765785607064,0.004,89803.0,89802.0,0.6267682]
[1765785607259,0.004,89803.0,89802.0,0.67815306]
[1765785608969,0.004,89803.0,89802.0,0.56693077]
[1765785610422,0.004,89803.0,89802.0,0.54340077]
[1765785610820,0.004,89803.0,89802.0,0.56693077]
[1765785611000,0.004,89803.0,89802.0,0.51691238]
[1765785611445,0.004,89803.0,89802.0,0.16978238]
[1765785611655,0.11524003,89803.0,89802.0,0.16978238]
[1765785611848,0.004,89803.0,89802.0,0.16978238]
[1765785612651,0.004,89803.0,89802.0,0.15012764]
[1765785614431,0.004,89803.0,89802.0,0.16126287]
[1765785616590,0.004,89803.0,89802.0,0.01286287]
[1765785619276,0.004,89803.0,89802.0,0.00011477]
[1765785619277,0.20680923,89803.0,89802.0,0.00011477]
[1765785619476,0.16658526,89803.0,89802.0,0.00011477]
[1765785620851,2.46371503,89803.0,89802.0,0.00011477]
[1765785621058,2.08735203,89803.0,89802.0,0.00011477]
[1765785621279,2.05935203,89803.0,89802.0,0.00011477]
[1765785621658,2.05435203,89803.0,89802.0,0.00011477]
[1765785621888,2.02450003,89803.0,89802.0,0.00011477]
[1765785622018,2.03350003,89803.0,89802.0,0.00011477]
[1765785622225,2.14400765,89803.0,89802.0,0.00011477]
[1765785622563,0.91759403,89803.0,89802.0,0.00011477]
[1765785622868,0.88313326,89803.0,89802.0,0.00011477]
[1765785623098,0.88313326,89803.0,89766.0,0.01114007]
[1765785623099,0.01114044,89763.0,89760.0,0.47168786]
[1765785623305,0.01114044,89763.0,89762.0,0.03345673]
[1765785623306,4.677e-05,89763.0,89762.0,0.03345673]
[1765785623518,4.677e-05,89763.0,89760.0,0.00161287]
[1765785623519,0.22281143,89762.0,89760.0,0.00161287]
[1765785623720,0.01114144,89755.0,89752.0,0.01114181]
[1765785623923,0.01114119,89757.0,89753.0,0.01114168]
[1765785624140,0.03546069,89761.0,89757.0,0.01114119]
[1765785624141,0.01952069,89761.0,89757.0,0.01114119]
[1765785624612,0.00838,89761.0,89758.0,0.23396242]
[1765785624808,0.00838,89761.0,89760.0,0.001]
[1765785624962,0.00838,89761.0,89758.0,0.23396242]
[1765785626309,0.03265,89761.0,89758.0,0.01114106]
[1765785626866,0.00838,89761.0,89758.0,0.01114106]
[1765785627075,0.01038,89761.0,89758.0,0.01114106]
[1765785627267,0.24433521,89761.0,89757.0,0.01114119]
[1765785627474,0.24233521,89761.0,89757.0,0.01114119]
[1765785627670,0.01114081,89760.0,89756.0,0.01114131]
[1765785627878,0.02252069,89761.0,89757.0,0.01114119]
[1765785628099,0.01114081,89760.0,89756.0,0.01114131]
[1765785628309,0.01625,89757.0,89756.0,0.01114131]
[1765785629473,0.01625,89757.0,89756.0,0.22282632]
[1765785629669,0.01138,89761.0,89758.0,0.01114106]
[1765785629907,0.01114094,89759.0,89755.0,0.01114144]
[1765785630089,0.01952069,89761.0,89757.0,0.01114119]
[1765785630226,0.003,89760.0,89757.0,0.01114119]
[1765785630647,0.00838,89761.0,89759.0,0.22281888]
[1765785631874,0.01138,89761.0,89759.0,0.22281888]
[1765785632883,0.04034,89760.0,89758.0,0.01114106]
[1765785633085,0.01664,89760.0,89757.0,0.01114119]
[1765785633497,0.01664,89760.0,89758.0,0.22282136]
[1765785633697,0.01664,89760.0,89757.0,0.01114119]
[1765785634035,0.01964,89760.0,89757.0,0.01114119]
[1765785634484,0.01664,89760.0,89758.0,0.22282136]
[1765785634861,0.003,89760.0,89758.0,0.22282136]
[1765785636030,0.00838,89761.0,89758.0,0.22282136]
[1765785636031,0.00838,89761.0,89759.0,0.22281643]
[1765785636335,0.003,89760.0,89759.0,0.22281643]
[1765785636847,0.00838,89761.0,89759.0,0.22281643]
[1765785637237,0.003,89761.0,89759.0,0.22281643]
[1765785641362,0.003,89761.0,89760.0,0.01508]
[1765785641552,0.003,89761.0,89760.0,0.04023287]
[1765785641682,0.003,89761.0,89760.0,0.09025126]
[1765785641888,0.003,89761.0,89760.0,0.20147355]
[1765785642279,4.677e-05,89763.0,89762.0,0.16124068]
[1765785642482,4.677e-05,89763.0,89762.0,0.19028355]
[1765785642740,4.677e-05,89763.0,89762.0,0.21382355]
[1765785643404,4.677e-05,89763.0,89762.0,0.36222355]
[1765785643600,4.677e-05,89763.0,89762.0,0.36322355]
[1765785643601,0.00204677,89763.0,89762.0,0.36322355]
[1765785647907,0.00204677,89763.0,89762.0,0.21338126]
[1765785648380,0.00204677,89763.0,89762.0,0.16336287]
[1765785648540,0.00204677,89763.0,89762.0,0.20198287]
[1765785649868,0.00204677,89763.0,89762.0,0.16336287]
[1765785652126,0.00204677,89763.0,89762.0,0.15101287]
[1765785652488,0.00204677,89763.0,89762.0,0.3738243]
[1765785654678,0.00204677,89763.0,89762.0,0.15101287]
[1765785654851,0.00204677,89763.0,89762.0,0.3738243]
[1765785655206,0.00204677,89763.0,89762.0,0.2254243]
[1765785657655,0.04305677,89763.0,89762.0,0.00261287]
[1765785658064,0.01819677,89763.0,89762.0,0.00261287]
[1765785658691,0.01819677,89763.0,89762.0,0.2254243]
[1765785658908,0.00204677,89763.0,89762.0,0.2254243]
[1765785661085,0.00204677,89763.0,89762.0,0.3738243]
[1765785661868,0.00204677,89763.0,89762.0,0.15101287]
[1765785662318,0.00204677,89763.0,89762.0,0.3738243]
[1765785663778,0.00204677,89763.0,89762.0,0.15101287]
[1765785664715,0.01819677,89763.0,89762.0,0.15101287]
[1765785664905,0.04305677,89763.0,89762.0,0.1494]
[1765785665433,0.1542968,89763.0,89762.0,0.1494]
[1765785666251,0.1542968,89763.0,89762.0,0.37221143]
[1765785666453,0.1542968,89763.0,89762.0,0.1494]
[1765785667003,0.1542968,89763.0,89762.0,0.001]
[1765785667146,0.01819677,89763.0,89762.0,0.2254243]
[1765785667349,0.00204677,89763.0,89762.0,0.2254243]
[1765785668205,0.00157664,89763.0,89762.0,0.2254243]
[1765785671433,0.00157664,89763.0,89762.0,0.00261287]
[1765785672604,0.01772664,89763.0,89762.0,0.00261287]
[1765785672800,0.00995664,89763.0,89762.0,0.00261287]
[1765785677225,0.00157664,89763.0,89762.0,0.02674287]
[1765785677423,0.00157664,89763.0,89762.0,0.00261287]
[1765785678333,0.00157664,89763.0,89762.0,0.04261287]
[1765785678749,0.00157664,89763.0,89762.0,0.01848287]
[1765785678959,0.00157664,89763.0,89762.0,0.15101287]
[1765785681500,0.00157664,89763.0,89762.0,0.19101287]
[1765785681831,0.00157664,89763.0,89762.0,0.32460184]
[1765785682216,0.00157664,89763.0,89762.0,0.72652413]
[1765785683126,0.00838,89791.0,89787.0,0.01113746]
[1765785683328,6.812e-05,89791.0,89788.0,0.01113734]
[1765785684087,0.01120509,89791.0,89788.0,0.01113734]
[1765785684775,0.02453,89789.0,89784.0,0.38229453]
[1765785685636,0.02453,89789.0,89784.0,0.15953784]
[1765785685637,0.01113734,89788.0,89784.0,0.15953784]
[1765785686595,0.01113746,89787.0,89784.0,0.15953784]
[1765785687003,0.01113746,89787.0,89784.0,0.1484]
[1765785687838,0.01113746,89787.0,89783.0,0.1484]
[1765785688344,0.01613746,89787.0,89783.0,0.1484]
[1765785688774,0.01113746,89787.0,89783.0,0.1484]
[1765785689189,0.01613746,89787.0,89783.0,0.15953796]
[1765785689620,0.01648,89784.0,89783.0,0.1484]
[1765785689754,0.35047686,89784.0,89783.0,0.1484]
[1765785689959,0.37359686,89784.0,89783.0,0.1484]
[1765785690765,0.37859686,89784.0,89783.0,0.1484]
[1765785691708,0.26735683,89784.0,89783.0,0.1484]
[1765785691959,0.37859686,89784.0,89783.0,0.1484]
[1765785692190,0.26735683,89784.0,89783.0,0.1484]
[1765785692388,0.37859686,89784.0,89783.0,0.1484]
[1765785693850,0.01113809,89782.0,89778.0,0.01113858]
[1765785694051,0.13075799,89783.0,89779.0,0.01113846]
[1765785694473,0.15387799,89783.0,89779.0,0.01113846]
[1765785694772,0.02312,89782.0,89779.0,0.01113846]
[1765785694980,0.01113858,89778.0,89775.0,0.01113895]
[1765785695765,0.01113846,89779.0,89776.0,0.01113883]
[1765785696841,0.01113846,89779.0,89775.0,0.01113895]
[1765785697043,0.01113858,89778.0,89775.0,0.01113895]
[1765785697516,0.01113871,89777.0,89774.0,0.01113908]
[1765785697667,0.01513858,89778.0,89775.0,0.01113895]
[1765785698638,0.01513858,89778.0,89774.0,0.01113908]
[1765785699284,0.23391551,89776.0,89772.0,0.1484]
[1765785699510,0.22278165,89774.0,89772.0,0.1484]
[1765785699712,0.22278165,89774.0,89773.0,0.1484]
[1765785700236,0.35050168,89774.0,89773.0,0.1484]
[1765785700637,0.37362168,89774.0,89773.0,0.1484]
[1765785701129,0.15084003,89774.0,89773.0,0.1484]
[1765785701336,0.15384003,89774.0,89773.0,0.1484]
[1765785702908,0.0426,89774.0,89773.0,0.1484]
[1765785703116,0.26538165,89774.0,89773.0,0.1484]
[1765785703295,0.37662168,89774.0,89773.0,0.1484]
[1765785704749,0.15384003,89774.0,89773.0,0.1484]
[1765785705277,0.13072003,89774.0,89773.0,0.1484]
[1765785705490,0.15384003,89774.0,89773.0,0.1484]
[1765785705700,0.003,89774.0,89771.0,0.23392737]
[1765785705894,0.003,89774.0,89771.0,0.01113945]
[1765785706452,0.01413908,89774.0,89771.0,0.01113945]
[1765785706650,0.01113908,89774.0,89771.0,0.01113945]
[1765785707402,0.11124003,89772.0,89771.0,0.01113945]
[1765785707971,0.11124003,89772.0,89770.0,0.01113957]
[1765785709631,0.11424003,89772.0,89770.0,0.01113957]
[1765785710475,0.11124003,89772.0,89770.0,0.01113957]
[1765785710655,0.11424003,89772.0,89770.0,0.01113957]
[1765785712535,0.13736003,89772.0,89770.0,0.01113957]
[1765785713823,0.11424003,89772.0,89770.0,0.23392869]
[1765785714460,0.003,89772.0,89770.0,0.23392869]
[1765785717645,0.003,89772.0,89770.0,0.23554156]
[1765785717850,0.003,89772.0,89771.0,0.05081]
[1765785718049,0.003,89772.0,89771.0,0.05242287]
[1765785718746,0.01113809,89782.0,89779.0,0.01113846]
[1765785718951,0.22275931,89783.0,89780.0,0.01113833]
[1765785719335,0.23389727,89783.0,89779.0,0.01113846]
[1765785719597,0.23389727,89783.0,89776.0,0.01113883]
[1765785719598,0.01601,89780.0,89776.0,0.01113883]
[1765785719800,0.12725003,89780.0,89776.0,0.01113883]
[1765785720250,0.01113846,89779.0,89776.0,0.01113883]
[1765785720470,0.02714833,89780.0,89777.0,0.01113871]
[1765785720703,0.01113895,89775.0,89772.0,0.01113933]
[1765785720930,0.11124003,89773.0,89772.0,0.01113933]
[1765785721177,0.12725003,89773.0,89771.0,0.00161287]
[1765785721384,0.15204003,89772.0,89771.0,0.00161287]
[1765785721587,0.12725003,89772.0,89771.0,0.00161287]
[1765785722537,0.01601,89772.0,89771.0,0.00161287]
[1765785722944,0.01901,89772.0,89771.0,0.00161287]
[1765785726014,0.12237973,89769.0,89766.0,0.1484]
[1765785726161,0.35842905,89767.0,89766.0,0.1484]
[1765785726737,0.38321905,89767.0,89766.0,0.1484]
[1765785727881,0.38321905,89767.0,89766.0,0.1494]
[1765785728085,0.38310766,89767.0,89766.0,0.1494]
[1765785728322,0.38510766,89767.0,89766.0,0.1494]
[1765785728929,0.38310766,89767.0,89766.0,0.1494]
[1765785729145,0.38310766,89767.0,89766.0,0.1484]
[1765785729383,0.38710766,89767.0,89766.0,0.1484]
[1765785729550,0.34518913,89764.0,89760.0,0.15954081]
[1765785729755,0.00827,89761.0,89760.0,0.1484]
[1765785729966,0.01114081,89760.0,89756.0,0.1484]
[1765785730181,0.01601,89757.0,89754.0,0.01114156]
[1765785730394,0.01114094,89759.0,89754.0,0.23558337]
[1765785730637,0.01941069,89761.0,89757.0,0.01114119]
[1765785730805,0.01114094,89759.0,89756.0,0.01114131]
[1765785731803,0.01114094,89759.0,89754.0,0.00165964]
[1765785731804,0.01114119,89757.0,89754.0,0.00165964]
[1765785732006,0.01601,89755.0,89754.0,0.00165964]
[1765785732188,0.23883881,89755.0,89754.0,0.00165964]
[1765785732540,0.37486884,89755.0,89754.0,0.00165964]
[1765785732676,0.12725003,89755.0,89754.0,0.00165964]
[1765785733103,0.35007884,89755.0,89754.0,0.00165964]
[1765785733305,0.37486884,89755.0,89754.0,0.00165964]
[1765785733562,0.26362881,89755.0,89754.0,0.00165964]
[1765785733730,0.37486884,89755.0,89754.0,4.677e-05]
[1765785734133,0.37486884,89755.0,89754.0,0.00104677]
[1765785734331,0.37486884,89755.0,89754.0,4.677e-05]
[1765785734533,0.26362881,89755.0,89754.0,4.677e-05]
[1765785734756,0.37686884,89755.0,89754.0,0.00104677]
[1765785734976,0.37686884,89755.0,89754.0,4.677e-05]
[1765785735186,0.37486884,89755.0,89754.0,4.677e-05]
[1765785735387,0.37486884,89755.0,89754.0,0.00104677]
[1765785735585,0.37686884,89755.0,89754.0,0.00104677]
[1765785743985,0.37486884,89755.0,89754.0,0.00104677]
[1765785744180,0.37486884,89755.0,89754.0,4.677e-05]
[1765785744364,0.37886884,89755.0,89754.0,4.677e-05]
[1765785753769,0.4696691,89755.0,89754.0,4.677e-05]
[1765785753934,0.83669032,89755.0,89754.0,4.677e-05]
[1765785754285,0.73183032,89755.0,89754.0,4.677e-05]
[1765785754502,0.71204932,89755.0,89754.0,4.677e-05]
[1765785755147,0.64389132,89755.0,89754.0,4.677e-05]
[1765785755348,0.63989132,89755.0,89754.0,4.677e-05]
[1765785755732,0.64389132,89755.0,89754.0,4.677e-05]
[1765785756360,0.63989132,89755.0,89754.0,4.677e-05]
[1765785756603,0.64589132,89755.0,89754.0,4.677e-05]
[1765785758781,1.07112994,89755.0,89754.0,4.677e-05]
[1765785758988,1.07112994,89755.0,89740.0,0.0026656]
[1765785758989,0.3341036,89741.0,89740.0,0.0026656]
[1765785759186,0.3677736,89741.0,89740.0,0.00274659]
[1765785759391,0.3910636,89741.0,89740.0,0.00274659]
[1765785759604,0.27982357,89741.0,89740.0,0.00274659]
[1765785759800,0.3910636,89741.0,89740.0,0.00274659]
[1765785760000,0.27982357,89741.0,89740.0,0.00274659]
[1765785760238,0.3950636,89741.0,89740.0,0.00274659]
[1765785761938,0.3910636,89741.0,89740.0,0.00274659]
[1765785762368,0.3950636,89741.0,89740.0,0.00274659]
[1765785764683,0.3995266,89741.0,89740.0,0.00274659]
[1765785767336,0.3963266,89741.0,89740.0,0.00274659]
[1765785778316,0.3787266,89741.0,89740.0,0.00274659]
[1765785778533,0.3963266,89741.0,89740.0,0.00274659]
[1765785780834,0.26748657,89741.0,89740.0,0.00274659]
[1765785781041,0.3963266,89741.0,89740.0,0.00274659]
[1765785784603,1.9917036,89741.0,89740.0,0.00274659]
[1765785784929,2.02619778,89741.0,89740.0,0.00274659]
[1765785785331,2.02219778,89741.0,89740.0,0.00274659]
[1765785785957,2.1327054,89741.0,89740.0,0.00274659]
[1765785786790,2.02719778,89741.0,89740.0,0.00274659]
[1765785787200,2.02319778,89741.0,89740.0,0.00274659]
[1765785787502,2.02919778,89741.0,89740.0,0.00274659]
[1765785787690,1.11833678,89741.0,89740.0,0.00274659]
[1765785788066,1.02469675,89741.0,89740.0,0.00274659]
[1765785789071,1.13593678,89741.0,89740.0,0.00274659]
[1765785789417,1.12549612,89741.0,89740.0,0.00274659]
[1765785789618,1.13593438,89741.0,89740.0,0.00274659]
[1765785789844,1.13593096,89741.0,89740.0,0.00274659]
[1765785792338,0.6248185,89735.0,89728.0,0.0004]
[1765785792685,0.6399685,89735.0,89728.0,0.0004]
[1765785792824,0.6628885,89735.0,89728.0,0.0004]
[1765785793020,0.69140248,89735.0,89728.0,0.0004]
[1765785793451,0.69640248,89735.0,89728.0,0.0004]
[1765785793861,0.69940248,89735.0,89728.0,0.0004]
[1765785794818,2.69940248,89735.0,89728.0,0.0004]
[1765785795841,2.8099101,89735.0,89728.0,0.0004]
[1765785798162,2.8099101,89735.0,89732.0,0.00024094]
[1765785800298,1.41655248,89735.0,89732.0,0.00024094]
[1765785800501,1.33422548,89735.0,89732.0,0.00024094]
[1765785801514,0.84433648,89735.0,89732.0,0.00024094]
[1765785801885,0.83103648,89735.0,89732.0,0.00024094]
[1765785803265,0.80698638,89735.0,89732.0,0.00024094]
[1765785805075,0.83102777,89735.0,89732.0,0.00024094]
[1765785805287,0.80698638,89735.0,89732.0,0.00024094]
[1765785805503,0.83102976,89735.0,89732.0,0.00024094]
[1765785807702,0.84146821,89735.0,89732.0,0.00024094]
[1765785808322,0.83102976,89735.0,89732.0,0.00024094]
[1765785808531,0.84146973,89735.0,89732.0,0.00024094]
[1765785808950,0.83102976,89735.0,89732.0,0.00024094]
[1765785809176,0.8414722,89735.0,89732.0,0.00024094]
[1765785810067,0.84862976,89735.0,89732.0,0.00024094]
[1765785811601,0.82827686,89735.0,89732.0,0.00024094]
[1765785811817,0.84030086,89735.0,89732.0,0.00024094]
[1765785812029,0.82985676,89735.0,89732.0,0.00024094]
[1765785812254,0.72744171,89735.0,89732.0,0.00024094]
[1765785812465,0.84030271,89735.0,89732.0,0.00024094]
[1765785812881,0.82270271,89735.0,89732.0,0.00024094]
[1765785813096,0.84030271,89735.0,89732.0,0.00024094]
[1765785813307,0.84030523,89735.0,89732.0,0.00024094]
[1765785815759,0.25049235,89735.0,89734.0,0.00201287]
[1765785815923,0.26362847,89735.0,89734.0,0.00201287]
[1765785816764,0.24847847,89735.0,89734.0,0.00201287]
[1765785816977,0.005,89735.0,89734.0,0.00201287]
[1765785817394,0.008,89735.0,89734.0,0.00201287]
[1765785817560,0.003,89735.0,89734.0,0.00201287]
[1765785817921,0.007,89735.0,89734.0,0.00201287]
[1765785818308,0.22287612,89736.0,89734.0,0.00201287]
[1765785818520,0.002,89735.0,89734.0,0.00201287]
[1765785818717,0.005,89735.0,89734.0,0.00201287]
[1765785819161,0.002,89735.0,89734.0,0.00201287]
[1765785821004,0.005,89735.0,89734.0,0.00201287]
[1765785823855,0.22787847,89735.0,89734.0,0.00201287]
[1765785825011,0.26734847,89735.0,89734.0,0.00201287]
[1765785825210,0.3785885,89735.0,89734.0,0.0004]
[1765785826680,0.24289847,89735.0,89734.0,0.0004]
[1765785826886,0.22787847,89735.0,89734.0,0.0004]
[1765785828004,0.22787847,89735.0,89734.0,0.00201287]
[1765785828005,0.005,89735.0,89734.0,0.00201287]
[1765785828339,0.22787847,89735.0,89734.0,0.00201287]
[1765785828581,0.26734847,89735.0,89734.0,0.00201287]
[1765785828772,0.26734847,89735.0,89734.0,0.0004]
[1765785828773,0.44774165,89735.0,89734.0,0.0004]
[1765785831490,0.3785885,89735.0,89734.0,0.0004]
[1765785833135,0.37813598,89735.0,89734.0,0.0004]
[1765785836319,0.37557598,89735.0,89734.0,0.0004]
[1765785839862,0.26433595,89735.0,89734.0,0.0004]
[1765785840074,0.25748595,89735.0,89734.0,0.0004]
[1765785840255,0.23988595,89735.0,89734.0,0.0004]